bitfinex-derivatives/quotes_BNBF0:USTF0_20250303
["timestamp","ask_amount","ask_price","bid_price","bid_amount"]
[1741023469769,1.186,596.02,595.41,0.26865607]
[1741023469964,1.186,596.02,595.29,0.26865607]
[1741023470169,1.186,596.02,595.3,0.26865607]
[1741023470371,1.186,596.02,595.31,0.26865607]
[1741023470570,1.186,596.02,595.32,0.26865607]
[1741023470864,1.186,596.02,595.33,0.26865607]
[1741023471062,1.186,596.02,595.29,0.26865607]
[1741023471264,1.186,596.02,595.3,0.26865607]
[1741023471463,1.186,596.02,595.31,0.26865607]
[1741023471664,1.186,596.02,595.29,0.26865607]
[1741023472366,1.186,596.02,595.3,0.26865607]
[1741023472564,1.186,596.02,595.19,0.26865607]
[1741023472766,1.186,596.02,595.2,0.26865607]
[1741023472969,1.186,596.02,595.19,0.26865607]
[1741023473162,1.186,596.02,595.2,0.26865607]
[1741023473365,1.186,596.02,595.19,0.26865607]
[1741023473569,1.186,596.02,595.2,0.26865607]
[1741023473775,1.186,596.02,595.19,0.26865607]
[1741023473971,1.186,596.02,595.2,0.26865607]
[1741023474167,1.186,596.02,595.19,0.26865607]
[1741023474368,1.186,596.02,595.2,0.26865607]
[1741023474573,1.186,596.02,595.19,0.26865607]
[1741023474769,1.186,596.02,595.2,0.26865607]
[1741023474968,1.186,596.02,594.91,0.26865607]
[1741023475172,1.186,596.02,594.92,0.26865607]
[1741023475475,1.186,596.02,594.93,0.26865607]
[1741023475674,1.186,596.02,594.94,0.26865607]
[1741023475976,1.186,596.02,594.95,0.26865607]
[1741023476270,1.186,596.02,594.96,0.26865607]
[1741023476571,1.186,596.02,594.97,0.26865607]
[1741023476769,1.186,596.02,594.98,0.26865607]
[1741023476968,1.186,596.02,594.99,0.26865607]
[1741023477169,1.186,596.02,595.0,0.26865607]
[1741023477376,1.186,596.02,595.01,0.26865607]
[1741023477573,1.186,596.02,595.02,0.26865607]
[1741023477774,1.186,596.02,595.03,0.26865607]
[1741023477975,1.186,596.02,595.04,0.26865607]
[1741023478274,1.186,596.02,595.05,0.26865607]
[1741023478471,1.186,596.02,595.06,0.26865607]
[1741023478673,1.186,596.02,595.07,0.26865607]
[1741023478875,1.186,596.02,595.01,0.26865607]
[1741023479073,1.186,596.02,595.08,0.26865607]
[1741023479273,1.186,596.02,595.09,0.26865607]
[1741023479576,1.186,596.02,595.1,0.26865607]
[1741023479773,1.186,596.02,595.11,0.26865607]
[1741023479977,1.186,596.02,595.01,0.26865607]
[1741023480171,1.186,596.02,595.02,0.26865607]
[1741023480375,1.186,596.02,595.01,0.26865607]
[1741023480577,1.186,596.02,595.0,1.49176976]
[1741023480578,1.186,596.02,595.02,0.26865607]
[1741023480771,1.186,596.02,595.03,0.26881054]
[1741023480970,1.186,596.02,595.04,0.26881054]
[1741023481170,1.186,596.02,594.51,1.49176976]
[1741023481171,1.186,596.02,595.05,0.26881054]
[1741023481375,1.186,596.02,595.06,0.26881054]
[1741023481576,1.186,596.02,595.07,0.26881054]
[1741023481872,1.186,596.02,595.08,0.26880417]
[1741023482076,1.186,596.02,595.09,0.26880417]
[1741023482278,1.186,596.02,595.1,0.26880417]
[1741023482579,1.186,596.02,595.11,0.26880417]
[1741023482871,1.186,596.02,594.51,1.49176976]
[1741023482872,1.186,596.02,595.12,0.26880417]
[1741023483076,1.186,596.02,595.13,0.26880417]
[1741023483277,1.186,596.02,595.14,0.26880417]
[1741023483473,1.186,596.02,594.69,0.26880417]
[1741023483680,1.186,596.02,594.71,0.33629836]
[1741023483979,1.186,596.02,594.72,0.26880417]
[1741023484480,1.186,596.02,594.74,0.3362814]
[1741023484681,1.186,596.02,594.75,0.26880417]
[1741023484984,1.186,596.02,594.77,0.33626443]
[1741023485179,1.186,596.02,594.78,0.26902795]
[1741023485373,1.186,596.02,594.79,0.26902795]
[1741023485574,1.186,596.02,594.81,0.33624182]
[1741023485776,1.186,596.02,594.82,0.26902795]
[1741023486280,1.186,596.02,594.83,0.33623051]
[1741023486478,1.186,596.02,594.84,0.26902795]
[1741023486676,1.186,596.02,594.85,0.26925614]
[1741023486877,1.186,596.02,594.84,0.26925614]
[1741023487080,1.186,596.02,594.83,0.33623051]
[1741023487081,1.186,596.02,594.85,0.26925614]
[1741023487280,1.186,596.02,594.84,0.26925614]
[1741023487479,1.186,596.02,594.85,0.26925614]
[1741023487684,1.5215592,596.02,594.86,1.7610259]
[1741023487879,1.5215592,596.02,594.87,0.26925614]
[1741023488282,1.5215592,596.02,594.88,0.26936139]
[1741023488581,1.5215592,596.02,594.89,0.26936139]
[1741023488881,1.5215592,596.02,594.9,0.26936139]
[1741023489081,1.5215592,596.02,594.87,0.26936139]
[1741023489283,1.5215592,596.02,594.86,1.49176976]
[1741023489284,1.5215592,596.02,594.88,0.26936139]
[1741023489575,1.5215592,596.02,594.89,0.26936139]
[1741023489781,1.5215592,596.02,594.83,0.33623051]
[1741023489982,1.5215592,596.02,594.84,0.26949999]
[1741023490874,0.33556483,596.01,594.84,0.26949999]
[1741023491273,2.08914043,596.01,594.84,0.26949999]
[1741023491680,2.08914043,596.01,594.85,0.26957123]
[1741023491880,2.08914043,596.01,594.84,0.26957123]
[1741023492083,0.30868966,596.0,594.85,0.26957123]
[1741023492280,2.08914043,596.01,594.84,0.26957123]
[1741023492481,2.08914043,596.01,594.85,0.26957123]
[1741023492680,2.08914043,596.01,594.86,0.26957123]
[1741023492876,2.08914043,596.01,594.84,0.26957123]
[1741023493083,2.08914043,596.01,594.83,0.33623051]
[1741023493084,2.08914043,596.01,594.85,0.26957123]
[1741023493284,0.33557046,596.0,594.86,0.26953065]
[1741023493582,0.33557046,596.0,594.87,0.26953065]
[1741023493776,0.33557046,596.0,594.88,0.26953065]
[1741023493982,0.33557046,596.0,594.89,0.26953065]
[1741023494277,0.33557046,596.0,594.9,0.26953065]
[1741023494476,2.08910924,596.0,594.84,0.26953065]
[1741023494679,2.08910924,596.0,594.85,0.26953065]
[1741023494880,2.08910924,596.0,594.86,0.26953065]
[1741023495081,2.08910924,596.0,594.84,0.26953065]
[1741023495278,2.08910924,596.0,594.85,0.26953065]
[1741023495483,2.08910924,596.0,594.86,0.26953065]
[1741023495683,2.08910924,596.0,594.87,0.26953065]
[1741023495878,2.08910924,596.0,594.88,0.26953065]
[1741023496078,0.33557046,596.0,594.84,0.26953065]
[1741023496285,0.33557046,596.0,594.83,0.33623051]
[1741023496485,0.33557046,596.0,594.85,0.26940941]
[1741023496783,1.416,595.99,594.86,0.26940941]
[1741023496984,0.33558173,595.98,594.87,0.26940941]
[1741023497180,0.33558173,595.98,594.83,0.33623051]
[1741023497181,0.33558173,595.98,594.88,0.26940941]
[1741023497386,0.33558173,595.98,594.89,0.26940941]
[1741023497684,0.33558173,595.98,594.9,0.26940941]
[1741023497985,0.33558173,595.98,594.91,0.26940941]
[1741023498186,0.33558173,595.98,594.92,0.26940941]
[1741023498386,0.33558173,595.98,594.93,0.26940941]
[1741023498583,0.33558173,595.98,594.84,0.26940941]
[1741023498787,0.33558173,595.98,594.85,0.26940941]
[1741023498982,0.33558173,595.98,594.86,0.26940941]
[1741023499179,0.33558173,595.98,594.87,0.26940941]
[1741023499380,0.33558173,595.98,594.83,0.33623051]
[1741023499585,0.33558173,595.98,594.84,0.26907282]
[1741023499780,0.33558173,595.98,594.85,0.26907282]
[1741023499987,0.33558173,595.98,594.83,0.33623051]
[1741023499988,0.33558173,595.98,594.86,0.26907282]
[1741023500188,0.33558173,595.98,594.87,0.26907282]
[1741023500389,0.33558173,595.98,594.88,0.26907282]
[1741023500588,0.33558173,595.98,594.89,0.26907282]
[1741023500783,0.33558173,595.98,594.9,0.26907282]
[1741023500983,0.33558173,595.98,594.91,0.26907282]
[1741023501191,0.33558173,595.98,594.92,0.26901829]
[1741023501386,0.33558173,595.98,594.93,0.26901829]
[1741023501584,0.33558173,595.98,594.94,0.26901829]
[1741023501787,0.33558173,595.98,594.84,0.26901829]
[1741023501989,0.33558173,595.98,594.85,0.26901829]
[1741023502190,0.33558173,595.98,594.86,0.26901829]
[1741023502391,0.33558173,595.98,594.87,0.26901829]
[1741023502690,0.33558173,595.98,594.88,0.26901829]
[1741023502991,0.33558173,595.98,594.83,0.33623051]
[1741023502992,0.33558173,595.98,594.89,0.26901829]
[1741023503192,0.33558173,595.98,594.84,0.26901829]
[1741023503390,0.33558173,595.98,594.85,0.26901829]
[1741023503591,0.33558173,595.98,594.83,0.33623051]
[1741023503592,0.33558173,595.98,594.86,0.26901829]
[1741023503790,0.33558173,595.98,594.87,0.26901829]
[1741023503986,0.33558173,595.98,594.88,0.26901829]
[1741023504295,0.33558173,595.98,594.89,0.26901829]
[1741023504492,0.33558173,595.98,594.9,0.26901829]
[1741023504690,0.33558173,595.98,594.91,0.26901829]
[1741023504891,0.33558173,595.98,594.92,0.26901829]
[1741023505091,0.33558173,595.98,594.93,0.26901829]
[1741023505294,0.33558173,595.98,594.94,0.26901829]
[1741023505489,0.33558173,595.98,594.84,0.26901829]
[1741023505696,0.33558173,595.98,594.85,0.26901829]
[1741023505994,0.33558173,595.98,594.86,0.26901829]
[1741023506194,0.33558173,595.98,594.87,0.26901829]
[1741023506495,0.33558173,595.98,594.88,0.60522054]
[1741023506692,0.33558173,595.98,594.89,0.60521489]
[1741023506886,0.33558173,595.98,594.9,0.60520924]
[1741023507091,0.33558173,595.98,594.91,0.26901829]
[1741023510500,0.33558173,595.98,594.99,0.26901829]
[1741023510699,0.33558173,595.98,595.0,0.26901829]
[1741023510900,0.33558173,595.98,595.01,0.26901829]
[1741023511101,0.33558173,595.98,595.02,0.26901829]
[1741023511301,0.33558173,595.98,594.91,0.26901829]
[1741023511502,0.33558173,595.98,594.92,0.26901829]
[1741023511802,0.33558173,595.98,594.93,0.26901829]
[1741023512101,0.33558173,595.98,594.94,0.26901829]
[1741023512302,0.33558173,595.98,594.9,0.33619095]
[1741023512303,0.33558173,595.98,594.95,0.26897585]
[1741023512498,0.33558173,595.98,594.92,1.49176976]
[1741023512499,0.33558173,595.98,594.93,0.26897585]
[1741023512695,0.33558173,595.98,594.94,0.26897585]
[1741023512902,0.33558173,595.98,594.93,0.26897585]
[1741023513098,1.078,595.97,594.94,0.6051442]
[1741023513303,1.078,595.97,594.95,0.60513855]
[1741023513504,1.078,595.97,594.96,0.26897585]
[1741023515300,1.078,595.97,594.95,0.3361627]
[1741023515504,1.078,595.97,594.96,0.26903955]
[1741023515704,1.078,595.97,594.97,0.26903955]
[1741023515905,1.078,595.97,594.98,0.26903955]
[1741023516204,1.078,595.97,594.99,0.26898559]
[1741023516399,1.513,595.96,595.0,0.26898559]
[1741023516604,1.513,595.96,595.01,0.26898559]
[1741023516903,1.513,595.96,595.02,0.26898559]
[1741023517104,1.513,595.96,594.95,0.3361627]
[1741023517105,1.513,595.96,595.03,0.26898559]
[1741023517304,1.513,595.96,594.96,0.26898559]
[1741023517604,1.513,595.96,594.97,0.26898559]
[1741023517806,1.513,595.96,594.98,0.26898559]
[1741023518104,1.513,595.96,594.99,0.26898559]
[1741023518306,1.513,595.96,595.0,0.26898559]
[1741023518604,1.513,595.96,595.01,0.26898559]
[1741023518801,1.513,595.96,595.02,0.26898559]
[1741023519107,1.513,595.96,595.03,0.26898559]
[1741023519303,1.513,595.96,595.04,0.26898559]
[1741023519504,1.513,595.96,595.05,0.26898559]
[1741023519799,1.513,595.96,595.06,0.26898559]
[1741023520003,1.513,595.96,595.07,0.26898559]
[1741023520205,1.513,595.96,595.08,0.26898559]
[1741023520500,1.513,595.96,595.09,0.26898559]
[1741023520706,1.513,595.96,595.1,0.26898559]
[1741023520904,1.513,595.96,594.95,0.3361627]
[1741023520905,1.513,595.96,595.12,1.49176976]
[1741023521102,1.513,595.96,595.13,0.26898559]
[1741023523407,1.513,595.96,595.14,0.26898559]
[1741023523602,1.513,595.96,595.05,0.26898559]
[1741023523804,1.513,595.96,595.06,0.26898559]
[1741023524004,1.513,595.96,595.07,0.26898559]
[1741023524204,1.513,595.96,595.08,0.26898559]
[1741023524502,1.513,595.96,595.09,0.26898559]
[1741023524708,1.513,595.96,595.05,0.26898559]
[1741023524909,1.513,595.96,595.06,0.26898559]
[1741023525112,1.513,595.96,595.07,0.26898559]
[1741023525405,1.513,595.96,595.08,1.76075535]
[1741023525710,1.513,595.96,595.09,0.26898559]
[1741023526506,1.513,595.96,595.1,0.26898559]
[1741023526710,1.513,595.96,595.11,0.26898559]
[1741023526905,1.513,595.96,595.21,1.49176976]
[1741023527111,1.513,595.96,595.22,0.26898559]
[1741023528908,1.513,595.96,595.3,1.49176976]
[1741023529114,1.513,595.96,595.31,0.26898559]
[1741023530612,1.513,595.96,595.41,1.49176976]
[1741023530817,1.513,595.96,595.42,0.26898559]
[1741023532217,1.513,595.96,595.42,1.76075535]
[1741023532516,1.513,595.96,595.43,0.26898559]
[1741023534416,1.513,595.96,595.4,0.26898559]
[1741023534712,1.513,595.96,595.41,0.26898559]
[1741023534912,1.513,595.96,595.4,0.26898559]
[1741023535120,1.513,595.96,595.41,0.26898559]
[1741023535317,1.513,595.96,595.42,0.26898559]
[1741023535519,1.513,595.96,595.43,0.26898559]
[1741023535718,1.513,595.96,595.44,0.26898559]
[1741023536019,1.513,595.96,595.45,0.26898559]
[1741023536215,1.513,595.96,595.4,0.26898559]
[1741023536516,1.513,595.96,595.41,0.26898559]
[1741023536718,1.513,595.96,595.39,1.49176976]
[1741023537117,1.513,595.96,588.76,17.2055081]
[1741023537118,1.513,595.96,595.25,1.49176976]
[1741023539321,1.513,595.96,594.63,1.49176976]
[1741023539522,1.513,595.96,594.96,0.26900848]
[1741023539821,1.513,595.96,594.96,0.60516553]
[1741023540022,1.513,595.96,594.97,0.26900848]
[1741023540217,1.513,595.96,594.97,2.02202462]
[1741023540418,1.513,595.96,594.98,0.26900848]
[1741023542219,1.513,595.96,594.97,2.02200991]
[1741023542419,1.513,595.96,594.98,0.26900848]
[1741023543225,1.137,595.95,594.98,0.26900848]
[1741023543822,1.137,595.95,594.99,0.26903973]
[1741023544121,1.137,595.95,595.0,0.26903973]
[1741023544322,1.137,595.95,594.98,0.26903973]
[1741023544520,1.137,595.95,594.99,0.26903973]
[1741023544723,1.137,595.95,594.98,0.26903973]
[1741023544926,1.137,595.95,594.99,0.26903973]
[1741023545122,1.137,595.95,594.97,0.26903973]
[1741023547028,1.137,595.95,595.25,1.49176976]
[1741023547229,1.137,595.95,595.26,0.26903973]
[1741023548825,1.137,595.95,595.35,1.49176976]
[1741023549027,1.137,595.95,595.36,0.26903973]
[1741023550227,1.137,595.95,595.37,0.26900731]
[1741023550423,1.137,595.95,595.36,0.26900731]
[1741023550634,1.137,595.95,595.35,1.49176976]
[1741023550635,1.137,595.95,595.43,1.49176976]
[1741023550828,1.137,595.95,595.44,0.26900731]
[1741023551729,2.161,595.95,595.43,1.49176976]
[1741023551932,2.161,595.95,595.44,0.26905613]
[1741023552333,2.161,595.95,595.45,0.26905613]
[1741023552533,2.161,595.95,595.46,0.26905613]
[1741023552731,2.161,595.95,595.47,0.26905613]
[1741023552931,2.161,595.95,595.48,0.26905613]
[1741023553130,2.161,595.95,595.43,0.26905613]
[1741023553330,2.161,595.95,595.44,0.26905613]
[1741023553629,2.161,595.95,595.45,0.26905613]
[1741023553935,2.161,595.95,595.41,1.49176976]
[1741023553936,2.161,595.95,595.46,0.26905613]
[1741023554135,2.161,595.95,595.42,0.26905613]
[1741023554334,2.161,595.95,595.43,0.26905613]
[1741023554536,2.161,595.95,595.44,0.26905613]
[1741023554834,2.161,595.95,595.45,0.26905613]
[1741023555030,2.161,595.95,595.46,0.26905613]
[1741023555235,2.161,595.95,595.41,1.49176976]
[1741023555236,2.161,595.95,595.47,0.26905613]
[1741023555435,2.161,595.95,595.48,0.26905613]
[1741023555631,2.161,595.95,595.49,0.26905613]
[1741023555832,2.161,595.95,595.5,0.26905613]
[1741023556034,2.161,595.95,595.51,0.26905613]
[1741023556236,2.161,595.95,595.52,0.26905613]
[1741023556538,2.161,595.95,595.53,0.26905613]
[1741023556737,2.161,595.95,595.54,0.26905613]
[1741023557038,2.161,595.95,595.55,0.26905613]
[1741023557231,2.161,595.95,595.44,1.49176976]
[1741023557232,2.161,595.95,595.56,0.26905613]
[1741023557432,2.161,595.95,595.57,0.26905613]
[1741023557736,2.161,595.95,595.58,0.26905613]
[1741023557934,2.161,595.95,595.45,0.26905613]
[1741023558136,2.161,595.95,595.46,0.26905613]
[1741023558336,2.161,595.95,595.47,0.26905613]
[1741023558535,2.161,595.95,595.45,0.26905613]
[1741023558735,2.161,595.95,595.46,0.26905613]
[1741023558938,2.161,595.95,595.45,0.26905613]
[1741023559137,2.161,595.95,595.46,0.26905613]
[1741023559436,2.161,595.95,595.47,0.26905613]
[1741023559641,2.161,595.95,595.44,1.49176976]
[1741023559841,2.161,595.95,595.45,0.26906374]
[1741023560736,2.161,595.95,595.46,0.26906374]
[1741023560936,2.161,595.95,595.47,0.26906374]
[1741023561135,2.161,595.95,595.42,0.26906374]
[1741023561335,2.161,595.95,595.43,0.26906374]
[1741023561539,2.161,595.95,595.42,0.26906374]
[1741023561736,2.161,595.95,595.43,0.26906374]
[1741023561940,2.161,595.95,595.44,0.26906374]
[1741023562143,2.161,595.95,595.45,0.26906374]
[1741023562341,2.161,595.95,595.46,0.26906374]
[1741023562642,2.161,595.95,595.47,0.26906374]
[1741023562845,2.161,595.95,595.45,0.26906374]
[1741023563038,2.161,595.95,595.46,0.26906374]
[1741023563241,2.161,595.95,595.45,0.26906374]
[1741023563441,2.161,595.95,595.46,0.26906374]
[1741023563642,2.161,595.95,595.47,0.26906374]
[1741023563944,2.161,595.95,595.48,0.26906374]
[1741023564140,2.161,595.95,595.45,0.26906374]
[1741023564344,2.161,595.95,595.46,0.26906374]
[1741023564540,2.161,595.95,595.47,0.26906374]
[1741023564745,2.161,595.95,595.4,0.26906374]
[1741023565044,2.161,595.95,595.41,0.26906374]
[1741023565238,2.161,595.95,595.4,0.26906374]
[1741023565438,2.161,595.95,595.41,0.26906374]
[1741023565638,2.161,595.95,595.42,0.26906374]
[1741023565843,2.161,595.95,595.43,0.26906374]
[1741023566043,2.161,595.95,595.4,0.26906374]
[1741023566245,2.161,595.95,595.41,0.26906374]
[1741023566443,2.161,595.95,595.42,0.26906374]
[1741023566638,2.161,595.95,595.43,0.26906374]
[1741023566841,2.161,595.95,595.3,2.5380805]
[1741023566842,2.161,595.95,595.44,0.26906374]
[1741023567038,2.161,595.95,595.45,0.26906374]
[1741023567238,2.161,595.95,595.46,0.26906374]
[1741023567443,2.161,595.95,595.3,1.49176976]
[1741023567444,2.161,595.95,595.31,0.26906374]
[1741023567643,2.161,595.95,595.32,0.26906374]
[1741023567839,2.161,595.95,595.33,0.26906374]
[1741023568041,2.161,595.95,595.34,0.26906374]
[1741023568245,2.161,595.95,595.35,0.26906374]
[1741023568448,2.161,595.95,595.36,0.26906374]
[1741023568747,2.161,595.95,595.37,0.26906374]
[1741023568943,2.161,595.95,595.38,0.26906374]
[1741023569147,2.161,595.95,595.32,0.26906374]
[1741023569346,2.161,595.95,595.33,0.26906374]
[1741023569545,2.161,595.95,595.34,0.26906374]
[1741023569746,2.161,595.95,595.32,0.26906374]
[1741023570046,2.161,595.95,595.33,0.26906374]
[1741023570243,2.161,595.95,595.32,0.26906374]
[1741023570547,2.161,595.95,595.33,0.26906374]
[1741023570748,2.161,595.95,595.34,0.26862933]
[1741023570946,2.161,595.95,595.35,0.26862933]
[1741023571145,2.161,595.95,594.96,0.33615705]
[1741023571146,2.161,595.95,595.32,0.26862933]
[1741023571342,2.161,595.95,595.33,0.26862933]
[1741023571542,2.161,595.95,595.26,0.26862933]
[1741023571746,2.161,595.95,595.27,0.60461132]
[1741023571948,2.161,595.95,595.28,0.60460567]
[1741023572143,2.161,595.95,595.29,0.26862933]
[1741023572546,2.161,595.95,595.26,0.26862933]
[1741023572748,2.161,595.95,595.27,0.26862933]
[1741023573045,2.161,595.95,595.28,0.26862933]
[1741023573248,2.161,595.95,595.29,0.26862933]
[1741023573451,2.161,595.95,595.26,0.26862933]
[1741023573651,2.161,595.95,595.27,0.26862933]
[1741023573856,2.161,595.95,595.28,0.26875722]
[1741023574051,2.161,595.95,594.51,0.26875722]
[1741023574253,2.161,595.95,594.5,1.49176976]
[1741023574456,2.161,595.95,594.52,0.33640584]
[1741023574652,2.161,595.95,594.53,0.26874646]
[1741023574855,2.161,595.95,594.55,0.33638886]
[1741023575052,2.161,595.95,594.56,0.26874646]
[1741023575260,2.161,595.95,594.58,0.33637189]
[1741023575455,2.161,595.95,594.59,0.26874646]
[1741023575658,2.161,595.95,595.17,1.49176976]
[1741023575959,2.161,595.95,595.18,0.60477925]
[1741023576159,2.161,595.95,595.19,0.26874646]
[1741023576360,2.161,595.95,595.2,0.26863039]
[1741023576554,2.161,595.95,595.19,0.26863039]
[1741023576753,2.161,595.95,595.2,0.26863039]
[1741023576955,2.161,595.95,595.19,0.26863039]
[1741023577156,2.161,595.95,595.2,0.26863039]
[1741023577358,2.161,595.95,595.19,0.26863039]
[1741023577559,2.161,595.95,595.2,0.60465189]
[1741023577754,2.161,595.95,595.21,0.26863039]
[1741023577958,2.161,595.95,595.29,1.49176976]
[1741023578253,2.161,595.95,595.3,0.26863039]
[1741023578659,2.161,595.95,595.29,1.49176976]
[1741023578860,2.161,595.95,595.3,0.26833003]
[1741023579059,2.161,595.95,595.31,0.26833003]
[1741023579260,2.161,595.95,595.32,0.26833003]
[1741023579562,2.161,595.95,595.33,0.26833003]
[1741023579761,2.161,595.95,595.34,0.26833003]
[1741023579963,0.80337207,595.95,595.35,0.26833003]
[1741023580261,0.80337207,595.95,595.36,0.26830824]
[1741023580564,1.75217028,596.73,595.2,0.3360215]
[1741023580565,1.75217028,596.73,595.54,1.49176976]
[1741023580760,1.75217028,596.73,595.55,0.26830824]
[1741023581063,5.03356976,597.15,595.55,0.26830824]
[1741023581064,5.03356976,597.14,595.55,0.26830824]
[1741023581258,1.75148683,596.72,595.55,0.26830824]
[1741023581463,0.33517118,596.71,595.55,0.26830824]
[1741023581863,0.33517118,596.71,595.54,1.49176976]
[1741023581864,2.08666536,596.71,595.56,0.26825573]
[1741023582069,2.08666536,596.71,595.55,0.26825573]
[1741023582365,2.08666536,596.71,595.56,0.26825573]
[1741023582667,2.08666536,596.71,595.57,0.26825573]
[1741023582866,2.08666536,596.71,595.58,0.26825573]
[1741023583061,2.08666536,596.71,595.59,0.26825573]
[1741023583267,1.353,596.7,595.45,0.26825573]
[1741023583566,1.353,596.7,595.46,0.26825573]
[1741023583763,1.353,596.7,595.47,0.26825573]
[1741023583965,2.729,596.7,595.45,0.26825573]
[1741023584164,2.729,596.7,595.46,0.26825573]
[1741023584362,2.729,596.7,595.47,0.26825573]
[1741023584565,2.729,596.7,595.44,1.49176976]
[1741023584566,2.729,596.7,595.48,0.26825573]
[1741023584765,2.729,596.7,595.44,1.49176976]
[1741023585067,0.33518242,596.69,595.45,0.26818497]
[1741023586869,0.33518242,596.69,595.46,1.49176976]
[1741023587068,0.33518242,596.69,595.47,0.26818497]
[1741023587471,1.75153826,596.68,595.47,0.26818497]
[1741023588070,0.33519365,596.67,595.48,0.26812678]
[1741023588272,0.33519365,596.67,595.47,0.26812678]
[1741023588471,0.33519365,596.67,595.48,0.26812678]
[1741023588667,0.33519365,596.67,595.47,0.26812678]
[1741023588872,0.33519365,596.67,595.48,0.26812678]
[1741023589173,0.33519365,596.67,595.49,0.26812678]
[1741023589474,0.33519365,596.67,595.5,0.26812678]
[1741023589671,0.33519365,596.67,595.21,0.26812678]
[1741023589971,0.33519365,596.67,595.22,0.33601021]
[1741023590172,0.33519365,596.67,595.23,0.26812678]
[1741023590673,1.75178073,596.66,595.24,0.33599892]
[1741023590972,1.75178073,596.66,595.25,0.26812678]
[1741023591170,0.33520489,596.65,595.26,0.33598763]
[1741023591366,0.33520489,596.65,595.27,0.26812678]
[1741023591572,0.33520489,596.65,595.28,0.33597634]
[1741023591870,0.33520489,596.65,595.29,0.26812678]
[1741023592771,0.33520489,596.65,595.28,0.33597634]
[1741023592772,0.33520489,596.65,595.3,0.2680843]
[1741023592974,0.33520489,596.65,595.29,0.2680843]
[1741023593173,0.33520489,596.65,595.3,0.2680843]
[1741023593369,1.75181747,596.64,595.31,0.2680843]
[1741023593570,0.33521613,596.63,595.29,0.2680843]
[1741023593769,0.33521613,596.63,595.3,0.2680843]
[1741023593969,0.30835568,596.62,595.31,0.2680843]
[1741023594168,0.33521613,596.63,595.32,0.2680843]
[1741023594372,0.30836429,596.62,595.33,0.2680843]
[1741023594573,0.33521613,596.63,595.34,0.2680843]
[1741023594773,0.33521613,596.63,595.35,0.2680843]
[1741023594968,0.30835605,596.62,595.36,0.2680843]
[1741023595275,0.33522736,596.61,595.37,0.2680843]
[1741023595476,0.30835605,596.6,595.38,0.2680843]
[1741023595674,0.33522736,596.61,595.29,0.2680843]
[1741023595971,0.33522736,596.61,595.3,0.2680843]
[1741023596175,0.33522736,596.61,595.31,0.2680843]
[1741023596374,0.33522736,596.61,595.32,0.2680843]
[1741023596571,1.75181747,596.6,595.33,0.2680843]
[1741023596773,0.3352386,596.59,595.34,0.2680843]
[1741023596970,0.3352386,596.59,595.35,0.2680843]
[1741023597175,0.3352386,596.59,595.36,0.2680843]
[1741023597474,0.3352386,596.59,595.42,1.49176976]
[1741023597475,0.30838898,596.58,595.42,1.49176976]
[1741023597670,0.30838898,596.58,595.43,0.2680843]
[1741023597874,0.33525546,596.56,595.43,0.2680843]
[1741023598072,0.30838898,596.55,595.43,0.2680843]
[1741023598280,0.33525546,596.56,595.43,0.2680843]
[1741023598471,0.30840517,596.55,595.43,0.2680843]
[1741023598675,0.3352667,596.54,595.43,0.2680843]
[1741023599373,1.75192036,596.53,595.43,0.2680843]
[1741023599579,0.33527794,596.52,595.35,0.2680843]
[1741023599878,0.33527794,596.52,595.36,0.2680843]
[1741023600078,0.33527794,596.52,595.37,0.2680843]
[1741023600279,0.33527794,596.52,595.38,0.2680843]
[1741023600679,0.33527794,596.52,595.39,0.2680843]
[1741023600881,0.33527794,596.52,595.35,0.2680843]
[1741023601376,0.33527794,596.52,595.37,1.49176976]
[1741023601580,0.33527794,596.52,595.38,0.2680843]
[1741023604278,0.33527794,596.52,595.39,0.2680843]
[1741023604482,1.585,596.51,595.29,0.2680843]
[1741023604682,0.3352948,596.49,595.3,0.2680843]
[1741023604883,0.3352948,596.49,595.28,0.33597634]
[1741023605184,0.3352948,596.49,595.29,0.26837977]
[1741023607077,1.178,596.48,595.29,0.26837977]